[Event "Boardwalk Pearson Invitational 2019"]
[Site "Port Elizabeth"]
[Date "2019.03.29"]
[Round "2.1"]
[White "Khumalo, Keith"]
[Black "Oatlhotse, Providence"]
[Result "1/2-1/2"]
[ECO "E15"]
[WhiteElo "2015"]
[BlackElo "2320"]
[Annotator "NA"]
[PlyCount "27"]
[EventDate "2019.03.29"]
[EventType "swiss"]
[EventCountry "RSA"]
[SourceTitle "playchess.com"]
[Source "ChessBase"]
[SourceQuality "1"]
[TimeControl "40/5400+30:1800+30"]

1. d4 {[%emt 0:00:00]} Nf6 {[%emt 0:00:00]} 2. c4 {[%emt 0:00:00]} e6 {[%emt 0:00:00]} 3. Nf3 {[%emt 0:00:00]} b6 {[%emt 0:00:00]} 4. g3 {[%emt 0:00:05]} Ba6 {[%emt 0:00:00]} 5. Qa4 {[%emt 0:00:09]} c6 {[%emt 0:00:26]} 6. Nc3 {[%emt 0:02:54]} d5 {[%emt 0:00:28]} 7. cxd5 {[%emt 0:01:11]} exd5 {[%emt 0:00:05]} 8. Bg2 {[%emt 0:00:55]} Bd6 {[%emt 0:02:29]} 9. O-O {[%emt 0:00:25]} O-O {[%emt 0:01:01]} 10. Qc2 {[%emt 0:01:18]} Nbd7 {[%emt 0:01:10]} 11. Re1 {[%emt 0:00:10]} Rc8 {[%emt 0:03:47]} 12. Nh4 {[%emt 0:21:35]} g6 {[%emt 0:09:40]} 13. Bg5 {[%emt 0:09:35]} Re8 {[%emt 0:09:13]} 14. Bh3 {[%emt 0:04:02]} 1/2-1/2

[Event "Boardwalk Pearson Invitational 2019"]
[Site "Port Elizabeth"]
[Date "2019.03.29"]
[Round "2.2"]
[White "Beukes, Dante M"]
[Black "Bezuidenhout, Roland"]
[Result "0-1"]
[ECO "C02"]
[WhiteElo "2114"]
[BlackElo "2171"]
[Annotator "NA"]
[PlyCount "50"]
[EventDate "2019.03.29"]
[EventType "swiss"]
[EventCountry "RSA"]
[SourceTitle "playchess.com"]
[Source "ChessBase"]
[SourceQuality "1"]
[TimeControl "40/5400+30:1800+30"]

1. e4 {[%emt 0:00:00]} e6 {[%emt 0:00:26]} 2. d4 {[%emt 0:00:00]} d5 {[%emt 0:00:05]} 3. e5 {[%emt 0:00:00]} c5 {[%emt 0:00:08]} 4. c3 {[%emt 0:00:00]} Nc6 {[%emt 0:00:07]} 5. Nf3 {[%emt 0:00:00]} Bd7 {[%emt 0:02:00]} 6. Be2 {[%emt 0:00:12]} f6 {[%emt 0:00:08]} 7. O-O {[%emt 0:01:42]} Qc7 {[%emt 0:00:07]} 8. Re1 {[%emt 0:01:04]} O-O-O {[%emt 0:00:37]} 9. Bf1 {[%emt 0:10:15]} fxe5 {[%emt 0:03:45]} 10. Nxe5 {[%emt 0:03:16]} Nxe5 {[%emt 0:00:14]} 11. dxe5 {[%emt 0:04:43]} Ne7 {[%emt 0:01:18]} 12. Nd2 {[%emt 0:01:49]} Nc6 {[%emt 0:01:40]} 13. Nf3 {[%emt 0:01:53]} Be7 {[%emt 0:01:08]} 14. a3 {[%emt 0:03:21]} h6 {[%emt 0:01:20]} 15. b4 {[%emt 0:05:46]} g5 {[%emt 0:01:03]} 16. Qe2 {[%emt 0:03:31]} g4 {[%emt 0:00:38]} 17. Nd2 {[%emt 0:00:24]} h5 {[%emt 0:01:47]} 18. c4 {[%emt 0:16:02]} Nd4 {[%emt 0:01:48]} 19. Qd3 {[%emt 0:02:18]} Ba4 {[%emt 0:01:24]} 20. Ra2 {[%emt 0:02:52]} dxc4 {[%emt 0:00:43]} 21. Qxc4 {[%emt 0:03:29]} b5 {[%emt 0:00:31]} 22. Qc3 {[%emt 0:03:36]} cxb4 {[%emt 0:00:22]} 23. Qxc7+ {[%emt 0:02:18]} Kxc7 {[%emt 0:00:05]} 24. axb4 {[%emt 0:01:59]} Bxb4 {[%emt 0:00:36]} 25. Re4 {[%emt 0:05:55]} a5 {[%emt 0:01:57]} 0-1

[Event "Boardwalk Pearson Invitational 2019"]
[Site "Port Elizabeth"]
[Date "2019.03.29"]
[Round "2.3"]
[White "Kromhout, Ewan"]
[Black "Odendaal, Frederick"]
[Result "1/2-1/2"]
[ECO "D05"]
[WhiteElo "2007"]
[BlackElo "1992"]
[Annotator "NA"]
[PlyCount "150"]
[EventDate "2019.03.29"]
[EventType "swiss"]
[EventCountry "RSA"]
[SourceTitle "playchess.com"]
[Source "ChessBase"]
[SourceQuality "1"]
[TimeControl "40/5400+30:1800+30"]

1. d4 {[%emt 0:00:00]} Nf6 {[%emt 0:00:00]} 2. Nf3 {[%emt 0:00:00]} d5 {[%emt 0:00:41]} 3. e3 {[%emt 0:00:00]} e6 {[%emt 0:00:03]} 4. Bd3 {[%emt 0:00:20]} c5 {[%emt 0:00:23]} 5. c3 {[%emt 0:00:07]} Nbd7 {[%emt 0:01:33]} 6. Nbd2 {[%emt 0:00:25]} g6 {[%emt 0:00:19] D05: Colle System with ...e6} (6... b6 7. Qe2 Bb7 8. O-O Be7 9. b3 O-O 10. Bb2 Rc8 11. Rac1 Bd6 12. c4 cxd4 13. exd4 Qe7 14. Ne5 Ba3 15. Bxa3 Qxa3 {½-½ (44) Kramnik,V (2777)-Ding,L (2813) Wijk aan Zee 2019}) 7. O-O {[%emt 0:02:12]} Bg7 {[%emt 0:00:13]} 8. Ne5 {[%emt 0:00:35]} Nxe5 {[%emt 0:02:09]} 9. dxe5 {[%emt 0:00:47]} Nd7 {[%emt 0:01:37]} 10. f4 {[%emt 0:00:07]} O-O {[%emt 0:00:31]} 11. e4 $146 {[%emt 0:16:45]} ({Predecessor:} 11. Qe1 d4 12. cxd4 cxd4 13. exd4 Nxe5 14. dxe5 {0-1 (45) Bauer,S (1500)-Koerlin,H (1693) Berlin 2015}) 11... Nb6 {[%emt 0:04:57]} 12. exd5 {[%emt 0:03:52]} exd5 {[%emt 0:01:30]} 13. Nf3 {[%emt 0:00:45]} Qc7 {[%emt 0:07:30]} 14. f5 {[%emt 0:13:52]} gxf5 {[%emt 0:08:54]} 15. Bf4 {[%emt 0:02:36]} f6 {[%emt 0:05:51]} 16. Re1 {[%emt 0:13:02]} Qf7 {[%emt 0:06:46]} 17. exf6 {[%emt 0:06:31]} Bxf6 {[%emt 0:04:45]} 18. Bd6 {[%emt 0:02:01]} Re8 {[%emt 0:02:47]} 19. Rxe8+ {[%emt 0:02:32]} Qxe8 {[%emt 0:00:02]} 20. Bxc5 {[%emt 0:03:10]} Na4 {[%emt 0:00:54]} 21. Ba3 {[%emt 0:01:23]} Qe3+ {[%emt 0:01:49]} 22. Kh1 {[%emt 0:01:30]} Bd7 {[%emt 0:01:12]} 23. Qc2 {[%emt 0:01:13]} Qf4 {[%emt 0:02:28]} 24. Rf1 {[%emt 0:01:40]} Re8 {[%emt 0:13:16]} 25. Nd4 {[%emt 0:04:33]} Qh4 {[%emt 0:01:41]} 26. g3 {[%emt 0:06:23]} Qh5 {[%emt 0:02:26]} 27. Qg2 {[%emt 0:04:10]} Nb6 {[%emt 0:03:02]} 28. Bc5 {[%emt 0:01:53]} Kh8 {[%emt 0:04:43]} 29. Bxb6 {[%emt 0:00:43]} axb6 {[%emt 0:00:06]} 30. Qf3 {[%emt 0:05:36]} Qg5 {[%emt 0:03:23]} 31. Bxf5 {[%emt 0:00:56]} Bxf5 {[%emt 0:04:21]} 32. Qxf5 {[%emt 0:01:29]} Qxf5 {[%emt 0:00:18]} 33. Rxf5 {[%emt 0:00:26]} Bxd4 {[%emt 0:01:05]} 34. cxd4 {[%emt 0:00:15]} Re2 {[%emt 0:00:07]} 35. Rxd5 {[%emt 0:00:46]} Rxb2 {[%emt 0:00:06]} 36. Rd8+ {[%emt 0:00:14]} Kg7 {[%emt 0:01:01]} 37. Rd7+ {[%emt 0:00:01]} Kg6 {[%emt 0:01:04]} 38. Rxb7 {[%emt 0:00:02]} Rxa2 {[%emt 0:01:14]} 39. Rxb6+ {[%emt 0:00:10]} Kg5 {[%emt 0:00:38]} 40. d5 {[%emt 0:00:00]} Rd2 {[%emt 0:00:00]} 41. d6 {[%emt 0:09:55]} Kg4 {[%emt 0:03:53]} 42. Rb7 {[%emt 0:07:59]} h6 {[%emt 0:06:58]} 43. Rb4+ {[%emt 0:01:11]} (43. d7 $18) 43... Kg5 {[%emt 0:02:24]} 44. Rb6 {[%emt 0:05:38]} Kg4 {[%emt 0:03:19]} 45. d7 {[%emt 0:05:41]} h5 {[%emt 0:00:22]} 46. Rb4+ {[%emt 0:00:39]} Kf5 {[%emt 0:03:25]} 47. Rb7 $11 {[%emt 0:03:25]} Kg4 {[%emt 0:00:10]} 48. Kg1 {[%emt 0:01:18]} Kf3 {[%emt 0:11:23]} 49. Rb3+ {[%emt 0:01:48]} Kg4 {[%emt 0:00:05]} 50. Rb4+ {[%emt 0:00:16]} Kf5 {[%emt 0:00:30]} 51. Rb7 {[%emt 0:01:02]} Kg4 {[%emt 0:00:11]} 52. Kf1 {[%emt 0:00:32]} Kh3 {[%emt 0:02:08]} 53. Ke1 {[%emt 0:00:59]} Rd6 {[%emt 0:01:31]} 54. Kf2 {[%emt 0:00:46]} Kxh2 {[%emt 0:04:27]} 55. Kf3 {[%emt 0:01:02]} Kh3 {[%emt 0:03:28]} 56. Ke4 {[%emt 0:01:34]} Rd1 {[%emt 0:02:00]} 57. Kf4 {[%emt 0:00:21]} Rd2 {[%emt 0:01:46]} 58. Ke3 {[%emt 0:00:32]} Rd6 {[%emt 0:00:07]} 59. Kf4 {[%emt 0:00:54]} Rd2 {[%emt 0:00:24]} 60. Kg5 {[%emt 0:00:45]} Rd5+ {[%emt 0:00:20]} 61. Kg6 {[%emt 0:00:16]} Kxg3 {[%emt 0:01:49]} 62. Rb3+ {[%emt 0:00:34]} Kg4 {[%emt 0:00:56]} 63. Rb4+ {[%emt 0:00:02]} Kg3 {[%emt 0:00:26]} 64. Rb3+ {[%emt 0:00:34]} Kg4 {[%emt 0:00:02]} 65. Rb7 {[%emt 0:00:58]} h4 {[%emt 0:00:31]} 66. Kf6 {[%emt 0:00:10]} h3 {[%emt 0:00:52]} 67. Ke6 {[%emt 0:00:03]} Rxd7 {[%emt 0:02:36]} 68. Rxd7 {[%emt 0:00:04]} h2 {[%emt 0:00:01]} 69. Rd1 {[%emt 0:00:45]} Kg3 {[%emt 0:00:08]} 70. Kf5 {[%emt 0:00:03]} Kg2 {[%emt 0:00:04]} 71. Rd2+ {[%emt 0:01:17]} Kg1 {[%emt 0:01:24]} 72. Rd1+ {[%emt 0:01:02]} Kg2 {[%emt 0:00:03]} 73. Rd2+ {[%emt 0:00:39]} Kg1 {[%emt 0:00:02]} 74. Kg4 {[%emt 0:00:35]} h1=Q {[%emt 0:01:20]} 75. Rd1+ {[%emt 0:00:12]} Kh2 {[%emt 0:00:49]} 1/2-1/2

[Event "Boardwalk Pearson Invitational 2019"]
[Site "Port Elizabeth"]
[Date "2019.03.29"]
[Round "2.4"]
[White "Hercules, Benjamin Vincent"]
[Black "Klaver, Cornelis"]
[Result "1-0"]
[ECO "A84"]
[WhiteElo "2194"]
[BlackElo "2072"]
[Annotator "NA"]
[PlyCount "71"]
[EventDate "2019.03.29"]
[EventType "swiss"]
[EventCountry "RSA"]
[SourceTitle "playchess.com"]
[Source "ChessBase"]
[SourceQuality "1"]
[TimeControl "40/5400+30:1800+30"]

1. d4 {[%emt 0:00:00]} g6 {[%emt 0:00:00]} 2. c4 {[%emt 0:00:03]} f5 {[%emt 0:02:43]} 3. h4 {[%emt 0:01:03]} Nf6 {[%emt 0:04:28]} 4. h5 {[%emt 0:02:14]} Bg7 {[%emt 0:08:07]} 5. h6 {[%emt 0:00:49]} Bf8 {[%emt 0:00:05]} 6. Nc3 {[%emt 0:01:26]} Nc6 {[%emt 1:17:37]} 7. Nf3 {[%emt 1:27:55]} d5 {[%emt 0:00:00]} 8. Bf4 {[%emt 0:00:00]} e6 {[%emt 0:00:00]} 9. c5 {[%emt 0:00:00]} a6 {[%emt 0:00:00]} 10. e3 {[%emt 0:00:00]} Be7 {[%emt 0:00:00]} 11. Be2 {[%emt 0:00:00]} Ne4 {[%emt 0:00:00]} 12. Nxe4 {[%emt 0:00:00]} fxe4 {[%emt 0:00:00]} 13. Ne5 {[%emt 0:00:00]} Nxe5 {[%emt 0:00:00]} 14. Bxe5 {[%emt 0:00:00]} Bf6 {[%emt 0:00:00]} 15. Bg3 {[%emt 0:00:00]} O-O {[%emt 0:00:00]} 16. f3 {[%emt 0:00:00]} exf3 {[%emt 0:00:00]} 17. gxf3 {[%emt 0:00:00]} Bd7 {[%emt 0:00:00]} 18. f4 {[%emt 0:00:00]} b6 {[%emt 0:00:00]} 19. Rc1 {[%emt 0:00:00]} bxc5 {[%emt 0:00:00]} 20. Rxc5 {[%emt 0:00:00]} Be7 {[%emt 0:00:00]} 21. Rc2 {[%emt 0:00:00]} Bb4+ {[%emt 0:00:00]} 22. Kf2 {[%emt 0:00:00]} Bd6 {[%emt 0:00:00]} 23. Kg1 {[%emt 0:00:00]} g5 {[%emt 0:00:02]} 24. Bd3 {[%emt 0:00:00]} Kh8 {[%emt 0:01:33]} 25. Rg2 {[%emt 0:00:00]} gxf4 {[%emt 0:00:36]} 26. Bh4 {[%emt 0:00:00]} Be7 {[%emt 0:00:50]} 27. Rg7 {[%emt 0:00:00]} Bxh4 {[%emt 0:03:12]} 28. Rxh7+ {[%emt 0:00:00]} Kg8 {[%emt 0:00:01]} 29. Qg4+ {[%emt 0:00:00]} Bg5 {[%emt 0:00:02]} 30. Rh5 {[%emt 0:00:00]} Rf5 {[%emt 0:00:26]} 31. Bxf5 {[%emt 0:00:00]} exf5 {[%emt 0:00:05]} 32. Rxg5+ {[%emt 0:00:00]} Kxh7 {[%emt 0:00:59]} 33. Rg7+ {[%emt 0:00:00]} Kh8 {[%emt 0:00:06]} 34. Qg6 {[%emt 0:00:00]} Qg8 {[%emt 0:00:02]} 35. Qf6 {[%emt 0:00:00]} Qe6 {[%emt 0:00:39]} 36. Rh7+ {[%emt 0:00:00]} 1-0

[Event "Boardwalk Pearson Invitational 2019"]
[Site "Port Elizabeth"]
[Date "2019.03.30"]
[Round "3.1"]
[White "Bezuidenhout, Roland"]
[Black "Khumalo, Keith"]
[Result "1-0"]
[ECO "A24"]
[WhiteElo "2171"]
[BlackElo "2015"]
[Annotator "NA"]
[PlyCount "120"]
[EventDate "2019.03.29"]
[EventType "swiss"]
[EventCountry "RSA"]
[SourceTitle "playchess.com"]
[Source "ChessBase"]
[SourceQuality "1"]
[TimeControl "40/5400+30:1800+30"]

{[%evp 8,101,6,10,27,29,39,-1,15,-2,37,-14,13,22,37,-36,-23,-38,-17,-52,-57,-80,-94,-93,-112,-105,-53,-93,5,24,16,22,15,32767,32767,32767,32767,32767,32767,32767,32767,32767,32767,11,32767,51,206,32767,32767,32767,224,229,223,174,198,32767,32767,32767,106,77,108,78,118,32767,81,82,118,32767,130,87,131,32767,126,32767,32767,32767,32767,202,32767,179,186,189,268,237,360,355,360,372,32767,32767,32767,432,633,566,32767,458]} 1. Nf3 {[%emt 0:01:10]} Nf6 {[%emt 0:00:00]} 2. c4 {[%emt 1:29:50]} g6 {[%emt 0:00:00]} 3. g3 {[%emt 0:00:00]} Bg7 {[%emt 0:00:00]} 4. Bg2 {[%emt 0:00:00]} O-O {[%emt 0:00:08]} 5. Nc3 {[%emt 0:00:00]} d6 {[%emt 0:00:30]} 6. O-O {[%emt 0:00:00] LiveBook: 3904 Games} e5 {[%emt 0:03:09]} 7. d3 {[%emt 0:00:00]} Qe7 {[%emt 0:03:33] A24: English Opening vs King's Indian: Lines without ...Nc6} (7... Re8 8. Rb1 a5 9. Nd2 Nbd7 10. a3 h5 11. b4 axb4 12. axb4 h4 13. Nde4 Nh7 14. Bb2 f5 15. Nd2 Ndf6 16. b5 hxg3 17. hxg3 {½-½ (37) Alekseev,E (2639)-Grischuk,A (2771) St Petersburg 2018}) 8. Nd2 {[%emt 0:00:00]} c6 {[%emt 0:01:58]} 9. Rb1 {[%emt 0:00:00]} Rd8 $146 {[%emt 0:00:38]} ({Predecessor:} 9... Be6 10. b4 d5 11. b5 Rd8 12. Qa4 Bf8 13. bxc6 bxc6 14. cxd5 cxd5 15. Nb5 Qd7 16. Ba3 Nc6 17. Bxf8 Rxf8 18. Qa6 Rab8 19. Rfc1 Rfc8 20. Kf1 {½-½ (20) Harnett,R (2018)-Payne,M (1952) Brighton 2012}) 10. b4 {[%emt 0:00:00]} d5 {[%emt 0:00:37]} 11. cxd5 {[%emt 0:00:00]} (11. b5 $14) 11... cxd5 {[%emt 0:00:02]} 12. b5 {[%emt 0:00:00]} Be6 {[%emt 0:06:19]} 13. Nb3 {[%emt 0:00:00]} Nbd7 {[%emt 0:01:30]} 14. d4 {[%emt 0:00:00]} Rac8 {[%emt 0:05:57]} 15. Bb2 {[%emt 0:00:00]} e4 {[%emt 0:00:36]} 16. e3 {[%emt 0:00:00]} Bf5 {[%emt 0:02:10]} 17. Na4 {[%emt 0:00:00]} Qb4 {[%emt 0:04:02]} (17... b6 $17 18. Nd2 Qb4) 18. Nbc5 $1 {[%emt 0:00:00]} Nxc5 {[%emt 0:00:30]} 19. dxc5 {[%emt 0:00:00]} Qc4 {[%emt 0:00:27]} 20. h3 {[%emt 0:00:00]} Bd7 {[%emt 0:01:47]} 21. Bd4 {[%emt 0:00:00]} Bxb5 {[%emt 0:02:12]} 22. Nc3 {[%emt 0:00:00]} Bc6 {[%emt 0:01:15]} 23. Re1 {[%emt 0:00:00]} Qa6 {[%emt 0:01:20]} 24. Qd2 {[%emt 0:00:00]} Be8 {[%emt 0:02:38]} 25. Bf1 {[%emt 0:00:00]} Qc6 {[%emt 0:00:17]} 26. Nb5 {[%emt 0:00:00]} Ra8 $2 {[%emt 0:00:02]} (26... Qe6 $14) 27. Nd6 {[%emt 0:00:00]} Nd7 {[%emt 0:09:55]} 28. Bxg7 {[%emt 0:00:00]} Kxg7 {[%emt 0:00:54]} 29. Qd4+ {[%emt 0:00:00]} ({Stronger than} 29. Nxb7 Rdb8 $11) 29... Kg8 {[%emt 0:00:40]} 30. Rec1 {[%emt 0:00:00]} ({And not} 30. Nxb7 Rdb8 $11) 30... Rab8 {[%emt 0:03:33]} 31. Bb5 {[%emt 0:00:00]} Qc7 {[%emt 0:00:02]} 32. Qxd5 {[%emt 0:00:00]} Nf6 {[%emt 0:00:39]} 33. Qe5 {[%emt 0:00:00]} Bxb5 {[%emt 0:00:46]} 34. Qxf6 {[%emt 0:00:00]} Bc6 {[%emt 0:00:12]} 35. Rb4 {[%emt 0:00:00]} Rd7 {[%emt 0:00:37]} 36. Nxe4 {[%emt 0:00:00]} Re7 {[%emt 0:02:36]} 37. Nd6 {[%emt 0:00:00]} Re6 {[%emt 0:00:57]} 38. Qg5 {[%emt 0:00:00]} Qa5 {[%emt 0:00:37]} (38... b6 $142) 39. Qf4 {[%emt 0:00:00]} Rf8 {[%emt 0:01:05]} 40. Nxb7 {[%emt 0:00:00]} Qxa2 {[%emt 0:00:00]} 41. Nd6 {[%emt 0:03:47]} Kg7 {[%emt 0:00:03] [#]} 42. Qd4+ $1 {[%emt 0:03:40]} Rf6 {[%emt 0:00:41]} 43. Qb2 {[%emt 0:02:27]} (43. e4 $142) 43... Qxb2 {[%emt 0:02:58]} 44. Rxb2 {[%emt 0:00:07]} Rd8 {[%emt 0:00:07]} (44... Re6 {was worth a try.} 45. Ra2 Ra8) 45. Ra2 {[%emt 0:00:52]} Bd7 {[%emt 0:00:38]} (45... Rb8 {is a better defense.} 46. Rf1 Ra8) 46. h4 {[%emt 0:01:56]} Ra8 {[%emt 0:00:17]} 47. Rca1 {[%emt 0:00:24]} Bc6 {[%emt 0:00:16]} 48. Rxa7 {[%emt 0:00:29]} Rb8 {[%emt 0:00:02]} 49. Rc7 {[%emt 0:01:58]} Rb2 {[%emt 0:00:27]} (49... Bd5 $142 50. e4 Rxd6) 50. Rf1 {[%emt 0:02:03]} ({And not} 50. Rxc6 Rfxf2 51. Rc1 Rg2+ {[%mdl 64] Double Attack} 52. Kf1 Rgf2+ 53. Kg1 Rfe2 $11) 50... Ba4 {[%emt 0:00:20]} 51. g4 $18 {[%emt 0:03:08]} h5 {[%emt 0:00:55]} 52. g5 {[%emt 0:00:34]} Rf3 {[%emt 0:00:02]} 53. Kg2 {[%emt 0:00:48]} Bd1 {[%emt 0:00:27]} 54. Nxf7 {[%emt 0:00:55]} Rxf7 {[%emt 0:00:13]} 55. Rxf7+ {[%emt 0:00:06]} Kxf7 {[%emt 0:00:05]} 56. Rxd1 {[%emt 0:00:07]} Rc2 {[%emt 0:00:08]} 57. Rd7+ {[%emt 0:00:09]} Ke6 {[%emt 0:00:02]} 58. Rg7 {[%emt 0:00:27]} Kf5 {[%emt 0:00:05]} 59. Rf7+ {[%emt 0:00:10]} Ke5 {[%emt 0:00:09]} 60. Rf6 {[%emt 0:00:17]} Kd5 {[%emt 1:17:55]} 1-0

[Event "Boardwalk Pearson Invitational 2019"]
[Site "Port Elizabeth"]
[Date "2019.03.30"]
[Round "3.2"]
[White "Oatlhotse, Providence"]
[Black "Kromhout, Ewan"]
[Result "1-0"]
[ECO "A13"]
[WhiteElo "2320"]
[BlackElo "2007"]
[Annotator "NA"]
[PlyCount "155"]
[EventDate "2019.03.29"]
[EventType "swiss"]
[EventCountry "RSA"]
[SourceTitle "playchess.com"]
[Source "ChessBase"]
[SourceQuality "1"]
[TimeControl "40/5400+30:1800+30"]

{[%evp 8,143,14,6,25,43,27,37,32,0,0,0,-1,0,-2,0,0,0,0,0,0,0,0,0,16,12,7,0,32767,32767,19,8,60,50,32767,24,38,32767,43,0,12,6,9,-7,-12,-6,-14,32767,-10,-6,-3,-4,0,32767,32767,43,44,42,70,32767,32767,32767,32767,32767,32767,46,58,32767,32767,32767,32767,32767,32767,77,114,32767,32767,32767,32767,32767,32767,32767,32767,32767,32767,74,32767,32767,32767,72,32767,32767,32767,32767,32767,32767,32767,32767,32767,32767,32767,32767,32767,32767,32767,32767,87,83,374,32767,32767,32767,32767,32767,32767,32767,32767,32767,32767,32767,459,652,644,516,708,32767,32767,32767,782,1670,1177,32767,32767,12295,29974,32767,32767,29983]} 1. c4 {[%emt 0:00:00]} e6 {[%emt 0:00:00]} 2. Nf3 {[%emt 0:00:00]} d5 {[%emt 0:00:00]} 3. g3 {[%emt 0:00:12]} Nf6 {[%emt 0:00:00]} 4. Bg2 {[%emt 0:00:02]} d4 {[%emt 0:00:33]} 5. O-O {[%emt 0:00:28]} Nc6 {[%emt 0:00:03]} (5... c5 6. d3 Nc6 7. e3 Bd6 8. exd4 cxd4 9. Bg5 h6 10. Bxf6 Qxf6 11. Nbd2 Qd8 12. a3 a5 13. Rc1 O-O 14. Re1 Re8 {1-0 (58) Sjugirov,S (2663)-Korobov,A (2698) St Petersburg 2018}) 6. e3 {[%emt 0:01:04] A13: English Opening: 1...e6} e5 {[%emt 0:01:13]} 7. exd4 {[%emt 0:00:34]} exd4 {[%emt 0:00:01]} 8. a3 {[%emt 0:04:45]} a5 {[%emt 0:00:22]} 9. d3 {[%emt 0:01:14]} Be7 {[%emt 0:00:20]} 10. Bg5 {[%emt 0:00:47]} O-O {[%emt 0:00:21]} 11. Re1 {[%emt 0:01:13]} h6 {[%emt 0:01:36]} 12. Bxf6 {[%emt 0:00:14]} Bxf6 {[%emt 0:00:05]} 13. Nbd2 {[%emt 0:00:07] [#]} Re8 $146 {[%emt 0:05:26]} ({Predecessor:} 13... a4 14. Re2 {0-1 (42) Akesson,R (2450)-Santos Latasa,J (2536) Stockholm 2017}) 14. Ne4 {[%emt 0:07:37]} Be7 {[%emt 0:00:55]} 15. Rc1 {[%emt 0:03:57]} f5 {[%emt 0:12:59]} 16. Ned2 {[%emt 0:00:11]} Bf6 {[%emt 0:00:07]} 17. Qa4 {[%emt 1:16:05]} Bd7 {[%emt 0:27:59]} 18. c5 {[%emt 0:00:00]} Ne5 {[%emt 0:13:45]} 19. Qc2 {[%emt 0:00:00]} Nxf3+ {[%emt 0:02:48]} 20. Bxf3 {[%emt 0:00:00]} Bc6 {[%emt 0:03:07]} 21. Qc4+ {[%emt 0:00:00]} Kh7 {[%emt 0:00:16]} 22. Bxc6 {[%emt 0:00:00]} bxc6 {[%emt 0:00:28]} 23. Re6 {[%emt 0:00:00]} Qd5 {[%emt 0:05:46]} 24. Qxd5 {[%emt 0:00:00]} cxd5 {[%emt 0:00:02]} 25. Rce1 {[%emt 0:00:00]} Rxe6 {[%emt 0:05:33]} 26. Rxe6 {[%emt 0:00:00]} a4 {[%emt 0:00:28]} 27. Nf3 {[%emt 0:00:00]} Rb8 {[%emt 0:01:27]} 28. Ra6 {[%emt 0:00:00]} Rxb2 {[%emt 0:03:07]} 29. Rxa4 {[%emt 0:00:00]} Rb1+ {[%emt 0:05:20]} 30. Kg2 {[%emt 0:00:00]} Rd1 {[%emt 0:00:09]} 31. Nxd4 {[%emt 0:00:00]} Rxd3 {[%emt 0:00:53]} 32. Ne6 {[%emt 0:00:00]} Rc3 {[%emt 0:02:09]} 33. Ra7 {[%emt 0:00:00]} c6 {[%emt 0:02:59]} 34. Ra6 {[%emt 0:00:00]} d4 {[%emt 0:00:17]} 35. a4 {[%emt 0:00:26]} Rc4 {[%emt 0:00:48]} 36. Rxc6 {[%emt 0:01:00]} Rxa4 {[%emt 0:00:22]} 37. Rd6 {[%emt 0:01:13]} Rc4 {[%emt 0:00:24]} 38. Rd7 {[%emt 0:03:15]} h5 {[%emt 0:02:01]} 39. h4 {[%emt 0:00:54]} Kh6 {[%emt 0:02:54]} 40. Rd5 {[%emt 0:00:00]} Kg6 {[%emt 0:00:00]} 41. Nf4+ {[%emt 0:03:42]} Kf7 {[%emt 0:07:27]} 42. Rxf5 {[%emt 0:01:37]} g6 {[%emt 0:02:29]} 43. Rd5 {[%emt 0:01:29]} Be7 {[%emt 0:05:31]} 44. Nd3 {[%emt 0:06:13]} Rc3 {[%emt 0:03:07]} 45. Rxd4 {[%emt 0:06:02]} Bxc5 {[%emt 0:00:20]} 46. Rd5 {[%emt 0:00:55]} Be7 {[%emt 0:06:22]} 47. Ne5+ {[%emt 0:03:42]} Kf6 {[%emt 0:03:42]} 48. Ra5 {[%emt 0:01:37]} Rc2 {[%emt 0:01:27]} 49. Nd3 {[%emt 0:01:32]} Rd2 {[%emt 0:00:23]} 50. Ra6+ {[%emt 0:05:14]} Kf5 {[%emt 0:01:09]} 51. Ra5+ {[%emt 0:00:49]} Kf6 {[%emt 0:01:02]} 52. Nf4 {[%emt 0:00:21]} Bd6 {[%emt 0:01:20]} 53. Nh3 {[%emt 0:00:06]} Be5 {[%emt 0:01:07]} 54. Ra6+ {[%emt 0:00:07]} Rd6 {[%emt 0:02:08]} 55. Ra2 {[%emt 0:00:01]} Rb6 {[%emt 0:00:16]} 56. Ng5 {[%emt 0:00:24]} Rb2 {[%emt 0:00:27]} 57. Ra6+ {[%emt 0:00:30]} Kf5 $2 {[%emt 0:00:23]} (57... Kg7 $16 {is a better defense.}) 58. Ra5 {[%emt 0:00:49]} Kf6 {[%emt 0:01:04]} 59. Ne4+ {[%emt 0:00:27]} Kf5 {[%emt 0:01:46]} 60. Nd6+ {[%emt 0:00:46]} Ke6 {[%emt 0:00:17]} 61. Rxe5+ {[%emt 0:00:36]} Kxd6 {[%emt 0:00:47]} 62. Rg5 {[%emt 0:00:03]} Rb8 {[%emt 0:00:45]} 63. Rxg6+ {[%emt 0:00:05]} Ke7 {[%emt 0:00:04]} 64. Rg5 {[%emt 0:00:49]} Rh8 {[%emt 0:00:01]} 65. Kf3 {[%emt 0:00:28]} Kf6 {[%emt 0:00:01]} 66. Kf4 {[%emt 0:00:23]} Rh7 {[%emt 0:00:06]} 67. Ra5 {[%emt 0:01:24]} Rh8 {[%emt 0:00:55]} 68. Ra6+ {[%emt 0:00:12]} Kg7 {[%emt 0:00:01]} 69. Kg5 {[%emt 0:00:16]} Rf8 {[%emt 0:00:15]} 70. f4 {[%emt 0:00:42]} (70. Ra7+ $142 Kh8 71. f4 Kg8 72. Kxh5 Re8 73. Kg5 Kh8 74. f5 Rd8 75. g4 Rg8+ 76. Kh6) 70... Kh7 {[%emt 0:00:27]} 71. Ra7+ {[%emt 0:00:35]} Kh8 {[%emt 0:00:08]} 72. Kxh5 {[%emt 0:00:35]} Rg8 {[%emt 0:00:19]} 73. g4 {[%emt 0:00:48]} Rf8 {[%emt 0:00:09]} 74. f5 {[%emt 0:00:22]} Rb8 {[%emt 0:01:22]} 75. g5 {[%emt 0:00:23]} Kg8 {[%emt 0:00:12]} 76. f6 {[%emt 0:00:20]} Kh8 {[%emt 0:01:07]} 77. Kh6 {[%emt 0:00:20]} Kg8 {[%emt 0:00:21]} 78. g6 {[%emt 0:00:40]} 1-0